Cogmind - Beta 15 @@@ ROGUE MODE // 2025.06.03 @ 13:39:15 Player: puppuppit Result: Destroyed by X-77 Beamer with Gatling Laser Performance ------------- Evolutions (5) 2500 Regions Visited (5) 1000 Robots Destroyed (122) 610 Value Destroyed (4439) 4439 Prototype IDs (16) 320 Alien Tech Used (0) 0 Bonus (4489) 4489 TOTAL SCORE: 13358 Bonus ------- Triggered High Security 500 High Alert Combat Kills 2073 Follower Combat Kills 978 Entered Garrisons 200 Registered with UFD 300 Met Optimus in HQ 500 Friendly Fire -62 Cogmind --------- Core Integrity 0/1000 Matter 261/300 Energy 62/100 System Corruption 7% Temperature Cool (24) Movement Core (50) Location -5/Garrison Parts ------- > --- POWER (1) -------- (None) > --- PROPULSION (5) --- Improved Medium Treads > --- UTILITY (7) ------ (None) > --- WEAPON (4) ------- (None) > --- INVENTORY (5) ---- Light Angular Momentum Engine Light Angular Momentum Engine Thunder Leg Advanced Heat Sink Improved Remote Datajack Peak State ------------ > --- POWER ------------ Light Angular Momentum Engine > --- PROPULSION ------- Wheel Armored Wheel Armored Wheel Overtuned Huge Scrapsphere > --- UTILITY ---------- Scrap Suit Advanced Heat Sink Large Storage Unit Advanced Recoil Stabilizer Improved Kinecellerator Improved Medium Armor Plating > --- WEAPON ----------- KE Penetrator KE Penetrator KE Penetrator KE Penetrator > --- INVENTORY -------- Light Angular Momentum Engine Light Angular Momentum Engine Thunder Leg Scrap Suit Improved Cooling System High-capacity Matter Pod Improved Medium Armor Plating Improved Heavy Machine Gun Improved Heavy Machine Gun Enhanced Coil Gun Heavy Rocket Launcher Improved Remote Datajack Multitool Vortex Trap [Rating: 82] Favorites ----------- Power Light Deuterium Engine Engine Light Deuterium Engine Power Core Light Nuclear Core Propulsion Light Treads Treads Light Treads Leg Flexi-carbon Leg Wheel Armored Wheel Utility Large Storage Unit Device Kinecellerator Storage Large Storage Unit Processor Improved Targeting Computer Protection Improved Medium Armor Plating Weapon Improved Assault Rifle Energy Gun Medium Laser Ballistic Gun Improved Assault Rifle Ballistic Cannon Light Cannon Launcher Heavy Rocket Launcher Special Weapon Improved Remote Datajack Impact Weapon Hammer Build | -11 -10 -10 -7 -5 -5 ------- Run | Yrd Mat Sub Scr Fac Gar Slots Evolved 10 | . . . . 10 . Power . | . . . . . . Propulsion 3 | . . . . 3 . Utility 5 | . . . . 5 . Weapon 2 | . . . . 2 . Parts Attached 84 | 10 12 4 11 36 11 Power 13 | 1 3 1 4 4 . Engine 10 | 1 2 1 3 3 . Core 3 | . 1 . 1 1 . Reactor . | . . . . . . Propulsion 19 | 4 . 1 3 6 5 Treads 7 | 2 . 1 1 . 3 Leg 3 | . . . . 1 2 Wheel 9 | 2 . . 2 5 . Hover . | . . . . . . Flight . | . . . . . . Utility 27 | 2 5 . 3 15 2 Device 15 | 1 1 . 2 9 2 Storage 5 | 1 3 . 1 . . Processor 2 | . . . . 2 . Hackware . | . . . . . . Protection 5 | . 1 . . 4 . Artifact . | . . . . . . Weapon 25 | 3 4 2 1 11 4 Energy Gun 2 | 2 . . . . . Energy Cannon . | . . . . . . Ballistic Gun 16 | 1 3 . 1 9 2 Ballistic Cannon 2 | . 1 . . . 1 Launcher 2 | . . 1 . 1 . Special Weapon 2 | . . . . 1 1 Impact Weapon 1 | . . 1 . . . Slashing Weapon . | . . . . . . Piercing Weapon . | . . . . . . Special Melee Weapon . | . . . . . . Unidentified Prototypes 4 | . 1 . . 3 . Parts Lost 35 | . 2 . . 8 25 Power 4 | . 2 . . 1 1 Propulsion 9 | . . . . 1 8 Utility 11 | . . . . 4 7 Weapon 11 | . . . . 2 9 Highest Loss Streak 19 | . 1 . . 2 19 To Critical Strikes 1 | . . . . . 1 Average Backups 10 | 1 8 14 10 11 11 Power . | . 1 . . 1 3 Propulsion 1 | 1 1 4 1 1 1 Utility 3 | . 2 4 4 4 3 Weapon 3 | . 3 5 3 3 1 Tool/Special . | . . . . . . Unused Backups 33 | . 1 4 15 10 3 Power 2 | . . . . 1 1 Propulsion 6 | . . . 5 1 . Utility 17 | . 1 2 7 5 2 Weapon 8 | . . 2 3 3 . Tool/Special . | . . . . . . Average Slot Usage (%) 90 | . 98 100 85 85 76 Engine 8 | . 7 14 9 3 . Core 2 | . 5 . 1 . 4 Treads 19 | . 27 28 21 . . Wheel 6 | . . . 6 22 16 Device 10 | . 12 12 4 18 15 Storage 12 | . 14 14 14 5 4 Protection 4 | . 1 1 6 5 7 Ballistic Gun 21 | . 22 25 19 22 20 Peak Build Rating 82 | 9 14 15 21 82 81 Average Rating 24 | 4 10 14 14 70 72 On Entrance 22 | . 9 13 15 21 77 Naked Turns 2 | . . . . . 2 Heaviest Build 74 | 12 50 34 38 74 70 Greatest Support 66 | 40 40 40 40 66 54 Greatest Overweight (x) 2 | 1 1 . 2 1 2 Average Overweight (x) . | . . . . . . Largest Inventory Capacity 20 | 8 20 15 15 15 15 Average Capacity 15 | 7 17 15 15 15 14 Most Carried 15 | 2 15 15 15 15 14 Average Carried 12 | 1 8 14 12 14 11 Final Capacity 15 | 8 15 15 15 15 5 Final Carried 15 | 2 15 15 15 14 5 Class Distribution -------------------- 72% | Mutant 8% | Scavenger-Gunner 7% | Derelict-Mutant 6% | Scavenger-Tank 3% | Scavenger-Scrapper Dominant Class ---------------- Mutant | -10/Materials Mutant | -10/Subcaves Mutant | -7/Scraptown Scavenger-Gunner | -5/Factory Scavenger-Tank | -5/Garrison Resources | -11 -10 -10 -7 -5 -5 ----------- Run | Yrd Mat Sub Scr Fac Gar Matter Collected 4064 | 276 767 405 158 1888 570 Remotely . | . . . . . . Salvage Created 5648 | 168 985 234 . 3819 442 Parts 282 | 11 54 11 . 176 30 Haulers Intercepted 3 | . 2 . . 1 . Recyclers Shooed 8 | 1 2 . . 5 . Parts Field Recycled . | . . . . . . Retrieved Matter . | . . . . . . Parts Self-Destructed 8 | . . 8 . . . Prevented . | . . . . . . Kills | -11 -10 -10 -7 -5 -5 ------- Run | Yrd Mat Sub Scr Fac Gar Combat Hostiles Destroyed 75 | . 18 6 . 39 12 Guns 62 | . 15 4 . 31 12 Cannons 3 | . 3 . . . . AOE 10 | . . 2 . 8 . Classes Destroyed 15 | 2 7 1 . 5 . Worker 12 | . 6 . . 6 . Builder 10 | . 1 . . 9 . Tunneler 5 | 4 . . . 1 . Hauler 3 | . 2 . . 1 . Recycler 10 | 1 1 . . 8 . Mechanic 1 | . . . . 1 . Operator 3 | . 2 . . 1 . Watcher 3 | . 2 . . 1 . Swarmer 10 | . 3 . . . 7 Grunt 38 | . 15 . . 20 3 Sentry 11 | . . . . 10 1 Demolisher 1 | . . . . 1 . Hunter 4 | . . . . 3 1 Programmer 5 | . . . . 5 . Subdweller 6 | . . 6 . . . Best Kill Streak 9 | 3 3 3 . 9 4 Combat Bots Only 5 | . 3 3 . 5 4 Max Kills in Single Turn 4 | 1 1 1 . 4 2 Gunslinging 1 | . . . . 1 1 Exploded 3 | . . 1 . 3 . Melee . | . . . . . . Uniques/NPCs Destroyed . | . . . . . . Combat | -11 -10 -10 -7 -5 -5 -------- Run | Yrd Mat Sub Scr Fac Gar Hostile Shots Fired 620 | . 101 13 . 194 312 Missed 174 | . 22 4 . 53 95 Hits 446 | . 79 9 . 141 217 Melee 1 | . . . . 1 . Projectile 445 | . 79 9 . 140 217 AOE 2 | . . . . 2 . Critical Strikes 18 | . . . . 13 5 Part Disruptions 1 | . . . . 1 . Damage Taken 7614 | . 870 171 . 3201 3372 Core 1205 | . 140 56 . 384 625 Absorbed by Shields . | . . . . . . Regen/Repaired (Parts) 506 | . 223 . . 223 60 Core Remaining (%) 60 | 100 . . 21 . . Volleys Fired 285 | 12 119 20 . 100 34 Largest 4 | 2 2 2 . 4 4 Hottest 138 | 70 50 56 . 138 129 Shots Fired 788 | 24 238 37 . 381 108 Gun 732 | 24 209 28 . 369 102 Cannon 31 | . 29 . . . 2 Launcher 20 | . . 9 . 11 . Special 5 | . . . . 1 4 Kinetic 751 | 12 238 28 . 369 104 Thermal 12 | 12 . . . . . Explosive 20 | . . 9 . 11 . Electromagnetic . | . . . . . . Robot Hit Streak 12 | 3 12 12 . 10 6 Robot Miss Streak 6 | 1 6 1 . 6 5 Penetration Max 1 | . . . . 1 1 Secondary Targets 14 | . 2 . . 8 4 Max Gunslinging Chain 2 | . 1 . . 2 2 Shots Hit Robots 447 | 14 142 27 . 212 52 Core Hits 253 | 7 63 13 . 144 26 Critical Kills 8 | . . . . 8 . Critical Parts Destroyed 9 | . . . . 8 1 Critical Strikes 17 | . . . . 16 1 Destroy 17 | . . . . 16 1 Melee Attacks 13 | . . 13 . . . Impact 13 | . . 13 . . . Slashing . | . . . . . . Piercing . | . . . . . . Sneak Attacks 1 | . . 1 . . . Combat Hostiles . | . . . . . . Follow-up Attacks . | . . . . . . Damage Inflicted 11988 | 156 1426 625 . 8348 1433 Guns 9279 | 156 1146 357 . 6255 1365 Cannons 330 | . 280 . . . 50 Explosions 2361 | . . 268 . 2093 . Melee . | . . . . . . Ramming 18 | . . . . . 18 Kinetic 9530 | 77 1426 357 . 6255 1415 Thermal 228 | 79 . . . 149 . Explosive 2212 | . . 268 . 1944 . Electromagnetic . | . . . . . . Impact . | . . . . . . Slashing . | . . . . . . Piercing . | . . . . . . Highest Corruption 7 | . 3 3 . 5 7 Average Corruption 3 | . 2 3 . 3 5 Corruption Purged 3 | . . . . 3 . Corruption Blocked . | . . . . . . Effects 65 | . 3 34 . 13 15 Message Errors 11 | . . 5 . 1 5 Matter Fused 17 | . . 11 . 4 2 Heat Flow Errors 3 | . 2 1 . . . Energy Discharges 14 | . 1 11 . 1 1 Parts Fused 1 | . . . . 1 . Data Loss (minor) 8 | . . 3 . 3 2 Misfires 5 | . . 2 . . 3 Alerts 1 | . . 1 . . . Weapon Failures 5 | . . . . 3 2 Overload Shots . | . . . . . . Overflow Damage 48 | . . . . 48 . Projectiles . | . . . . . . Explosions 48 | . . . . 48 . Melee . | . . . . . . Knockbacks 4 | . 4 . . . . Impact . | . . . . . . Kinetic 4 | . 4 . . . . Secondary . | . . . . . . Self-Inflicted Damage 286 | . . . . 278 8 Shots 7 | . . . . 7 . Rammed 3 | . . . . . 3 Targets Rammed 3 | . . . . . 3 Kicked . | . . . . . . Crushed . | . . . . . . Highest Temperature 243 | 20 243 172 . 97 34 Average Temperature 25 | 11 27 95 . 21 14 Received Heat Transfer 2274 | . 345 42 . 666 1221 Siege Activations . | . . . . . . Martial Activations . | . . . . . . Shielding Activations . | . . . . . . Robots Disrupted . | . . . . . . Combat Hostiles . | . . . . . . Robots Corrupted . | . . . . . . Combat Hostiles . | . . . . . . Parts Fried . | . . . . . . Impact Corruptions . | . . . . . . Robots Melted . | . . . . . . Combat Hostiles . | . . . . . . Parts Melted 6 | 1 . . . 5 . Heat Transferred 249 | 199 . . . 50 . Parts Sabotaged . | . . . . . . Parts Stolen . | . . . . . . Parts Stripped . | . . . . . . Power Chain Reactions . | . . . . . . Alert | -11 -10 -10 -7 -5 -5 ------- Run | Yrd Mat Sub Scr Fac Gar Maximum Alert Level 5 | . . . . 5 5 Low Security (%) 59 | 100 100 . . 13 . Level 1 1 | . . . . 3 . Level 2 3 | . . . . 10 . Level 3 3 | . . . . 11 . Level 4 3 | . . . . 10 . Level 5 22 | . . . . 35 100 High Security 5 | . . . . 15 . Max Security . | . . . . . . Peak Influence 2678 | 10 121 . . 2678 2217 Initial 1867 | . . . . . 1867 Average 720 | 2 50 . . 1383 2060 Influence Increases 4475 | 25 616 75 . 3288 471 Destroy 0b10 Robot/C 1920 | . 360 . . 1240 320 Destroy 0b10 Robot/NC 280 | 25 70 . . 185 . Destroy Leader 390 | . 108 . . 262 20 Allied During Kill 409 | . . . . 375 34 Successful Hack 84 | . 17 . . 39 28 Select Force Hacks 60 | . 60 . . . . Disable Machine 495 | . . . . 495 . Anti-Garrison Action 50 | . . . . . 50 Destroy Structure 577 | . 1 . . 572 4 Lose Combat Pursuer 210 | . . 75 . 120 15 Influence Decreases 2447 | 25 523 168 . 620 1111 Entered New Map 846 | . . 45 . . 801 Time Decay 1101 | 25 503 123 . 450 . Lost Part 340 | . 20 . . 70 250 Lost Ally 160 | . . . . 100 60 Squads Dispatched 35 | . 7 . . 28 . Investigation 7 | . 5 . . 2 . Extermination 2 | . . . . 2 . Reinforcement 8 | . 2 . . 6 . Assault 9 | . . . . 9 . Garrison 9 | . . . . 9 . Intercept . | . . . . . . Searches Triggered . | . . . . . . Construction Impeded 4 | . . . . 4 . Haulers Reinforced 2 | . . . . 2 . Active Scanning Responses . | . . . . . . Cargo Convoy Interrupts 1 | . . . . 1 . Stealth | -11 -10 -10 -7 -5 -5 --------- Run | Yrd Mat Sub Scr Fac Gar Distress Signals 7 | . 3 . . 4 . Communications Jammed . | . . . . . . Distress Signals . | . . . . . . Times Spotted 151 | . 32 10 . 87 22 Peak Tracking Total 11 | . 3 2 . 11 8 Tactical Retreats 6 | . . 3 . 2 1 Traps | -11 -10 -10 -7 -5 -5 ------- Run | Yrd Mat Sub Scr Fac Gar Traps Triggered 6 | . 4 . . . 2 Indirectly . | . . . . . . Trap Hack Attempts . | . . . . . . Triggered . | . . . . . . Disarmed . | . . . . . . Reprogrammed . | . . . . . . Reused . | . . . . . . Traps Extracted . | . . . . . . Installed 2 | . . . . 2 . Triggered . | . . . . . . Most Traps Carried 2 | . . . 2 2 . Machines | -11 -10 -10 -7 -5 -5 ---------- Run | Yrd Mat Sub Scr Fac Gar Machines Disabled 36 | . . . . 33 3 Max in Single Turn 4 | . . . . 4 1 Garrison Relay 1 | . . . . . 1 Machines Repaired . | . . . . . . Machines Dismantled . | . . . . . . Machines Sabotaged . | . . . . . . Overloaded Fab Kills . | . . . . . . Hacking | -11 -10 -10 -7 -5 -5 --------- Run | Yrd Mat Sub Scr Fac Gar Machines Accessed 22 | . 9 . 2 10 1 Terminals 12 | . 6 . . 5 1 Fabricators . | . . . . . . Repair Stations 1 | . 1 . . . . Recycling Units 4 | . 2 . . 2 . Scanalyzers 1 | . . . . 1 . Garrison Access 2 | . . . . 2 . Total Hacks 64 | . 31 . 5 23 5 Successful 28 | . 12 . 5 9 2 Failed 36 | . 19 . . 14 3 Catastrophic 4 | . . . . 3 1 Database Lockouts . | . . . . . . Manual 36 | . 24 . . 10 2 Terminals 39 | . 22 . . 12 5 Fabricators . | . . . . . . Repair Stations 7 | . 7 . . . . Recycling Units 7 | . 2 . . 5 . Scanalyzers 3 | . . . . 3 . Garrison Access 3 | . . . . 3 . Terminal Hacks 12 | . 3 . 5 3 1 Record 4 | . . . 4 . . Robot Analysis 3 | . 2 . . 1 . Emergency Access Points 1 | . . . . . 1 Terminal Index 1 | . 1 . . . . Recall Reinforcements 1 | . . . . 1 . Zone Layout 1 | . . . . 1 . Proto ID Catalog 1 | . . . 1 . . Fabricator Hacks . | . . . . . . Repair Station Hacks 4 | . 4 . . . . Scan Component 2 | . 2 . . . . Repair 2 | . 2 . . . . Recycling Unit Hacks . | . . . . . . Scanalyzer . | . . . . . . Garrison Access Hacks 1 | . . . . 1 . Unlock Access 1 | . . . . 1 . Unauthorized Hacks 11 | . 5 . . 5 1 Terminals 7 | . 3 . . 3 1 Botnet 7 | . 3 . . 3 1 Fabricators . | . . . . . . Repair Stations . | . . . . . . Recycling Units 4 | . 2 . . 2 . Tunnel 2 | . 2 . . . . Fedlink 1 | . . . . 1 . Scrapoids 1 | . . . . 1 . Scanalyzers . | . . . . . . Garrison Access . | . . . . . . Data Cores Recovered 1 | . . . . 1 . Used . | . . . . . . Hacking Detections 17 | . 7 . . 9 1 Full Trace Events 5 | . 5 . . . . Feedback Events . | . . . . . . Feedback Blocked . | . . . . . . Robot Schematics Acquired . | . . . . . . Robots Built . | . . . . . . Authchips . | . . . . . . Time . | . . . . . . Total Robot Build Rating . | . . . . . . Part Schematics Acquired . | . . . . . . Parts Built . | . . . . . . Authchips . | . . . . . . Time . | . . . . . . Total Part Build Rating . | . . . . . . Parts Repaired 2 | . 2 . . . . Time 52 | . 52 . . . . Parts Recycled . | . . . . . . Recycled Matter . | . . . . . . Retrieved Matter . | . . . . . . Retrieved Components . | . . . . . . Parts Scanalyzed . | . . . . . . Part Schematics Acquired . | . . . . . . Parts Damaged . | . . . . . . Bothacking | -11 -10 -10 -7 -5 -5 ------------ Run | Yrd Mat Sub Scr Fac Gar Used RIF Installer . | . . . . . . Robots Hacked 1 | . . . . 1 . Non-combat 1 | . . . . 1 . Combat . | . . . . . . Robot Hacks Applied 1 | . . . . 1 . find_recycling 1 | . . . . 1 . Relay Couplers Released 3 | . . . . . 3 Machine Destruction 3 | . . . . . 3 Fabnet Peak Effective % . | . . . . . . Robots Rewired 2 | . . . . . 2 Allies Hacked . | . . . . . . Hacks Repelled . | . . . . . . Allies | -11 -10 -10 -7 -5 -5 -------- Run | Yrd Mat Sub Scr Fac Gar Total Allies 9 | . . . 1 5 3 Largest Group 6 | . . . 1 6 2 Highest-Rated Group 297 | . . . 59 297 233 Highest-Rated Ally 148 | . . . 59 59 148 Total Orders 5 | . . . 1 4 . STAY 2 | . . . 1 1 . FOLLOW 3 | . . . . 3 . Ally Attacks 202 | . . . . 175 27 Total Damage 4902 | . . . . 3842 1060 Kills 37 | . . . . 33 4 Allies Corrupted 1 | . . . . 1 . Allies Melted . | . . . . . . Intel | -11 -10 -10 -7 -5 -5 ------- Run | Yrd Mat Sub Scr Fac Gar Active Infowar (turns) 3383 | 21 1810 1552 . . . Terrain 1663 | 21 1642 . . . . Structural 1720 | . 168 1552 . . . Robot Analysis Total 3 | . 2 . . 1 . Derelict Logs Recovered 4 | . . . 4 . . Drone Launches . | . . . . . . Drone Recoveries . | . . . . . . Exploration | -11 -10 -10 -7 -5 -5 ------------- Run | Yrd Mat Sub Scr Fac Gar Turns Passed 9104 | 128 2098 1757 3290 1409 422 Spaces Moved 5212 | 56 814 1013 2024 990 315 Core 18 | 9 . . . . 9 Treads 3343 | 38 814 1013 1476 . 2 Legs . | . . . . . . Wheels 1851 | 9 . . 548 990 304 Hover . | . . . . . . Flight . | . . . . . . Fastest Speed 50 | 50 160 160 105 87 50 Average Speed 145 | 136 203 160 145 97 92 Slowest Speed 240 | 160 240 160 160 105 160 Overloaded Moves . | . . . . . . Propulsion Burnouts . | . . . . . . Robots Hopped . | . . . . . . Potential Cave-ins . | . . . . . . Cave-ins Triggered . | . . . . . . Exploration Rate (%) 46 | 4 88 45 76 26 40 Regions Visited 5 Branch Regions 2 Pre-discovered Areas 3 | . 2 . 1 . . Known Exits Taken 1 | . . . . 1 . Unknown Exits Taken 4 | 1 1 1 1 . . Scrap Searched 15 | . . 6 9 . . Spaces Dug 35 | . . 33 . 2 . Terrain Destroyed 338 | . . 109 . 222 7 Melee 1 | . . 1 . . . Projectile 70 | . . . . 63 7 AOE 266 | . . 108 . 158 . Terrain Rammed . | . . . . . . Walls Destroyed . | . . . . . . Machines Disabled . | . . . . . . Actions | -11 -10 -10 -7 -5 -5 --------- Run | Yrd Mat Sub Scr Fac Gar Total 6184 | 81 1054 1093 2382 1195 379 Wait 358 | . 75 5 267 7 4 Move 5207 | 55 813 1012 2023 989 315 Hop . | . . . . . . Pick Up 90 | 2 20 13 33 19 3 Fast Attach 31 | 8 5 . 2 9 7 Attach 18 | . . . 4 8 6 Detach 7 | . 1 . 6 . . Swap 80 | 3 10 15 9 39 4 Drop 89 | 1 11 15 38 21 3 Fire 285 | 12 119 20 . 100 34 Melee 13 | . . 13 . . . Ram 3 | . . . . . 3 Kick . | . . . . . . Crush . | . . . . . . Escape Stasis . | . . . . . . Rewire 1 | . . . . 1 . Trap 2 | . . . . 2 . Miscellaneous . | . . . . . . Route ------- -11/Scrapyard -10/Materials (discovered 4 exits: [*Mat x3] / [*Sub]) -10/Subcaves (discovered 2 exits: [*Mat] / *Scr) -7/Scraptown -5/Factory (discovered 3 exits: [*Fac x2] / Gar) -5/Garrison (discovered 2 exits: [*Fac x2]) History --------- Turn | Location | Event 13 | -11/Scrapyard | Discovered new exit (range 16) 129 | -11/Scrapyard | Entered Materials 313 | -10/Materials | Build established: Mutant 569 | -10/Materials | Discovered new exit (range 4) 573 | -10/Materials | Discovered new exit (range 10) 1030 | -10/Materials | Discovered new exit (range 16) 1262 | -10/Materials | Core integrity fell below 50% 1412 | -10/Materials | Repaired Lgt. Treads 1439 | -10/Materials | Repaired Lgt. Treads 1750 | -10/Materials | Discovered new exit (range 9) 2227 | -10/Materials | Entered Subcaves 2228 | -10/Subcaves | Approached by a straggling Scientist 2384 | -10/Subcaves | Shifting Twisted Machinery released Sub. Power Source 2660 | -10/Subcaves | Discovered new exit (range 10) 3207 | -10/Subcaves | Ambushed by Subdweller buried in earth 3212 | -10/Subcaves | Ambushed by Subdweller buried in earth 3575 | -10/Subcaves | Scientist uncovered a shortcut to Scraptown 3701 | -10/Subcaves | Shifting Twisted Machinery released Mak. Spear 3984 | -10/Subcaves | Entered Scraptown 3984 | -7/Scraptown | System corruption cleaned by C-Scrubber 4053 | -7/Scraptown | Heard Great Nut preacher, LISTEN AND RECITE! 4109 | -7/Scraptown | Scanned Subdweller tech in exchange for log data 4122 | -7/Scraptown | Learned location of Armory (-4) 4123 | -7/Scraptown | Learned Research emergency access door positions 4125 | -7/Scraptown | Learned location of 2 exits from Lower Caves 4213 | -7/Scraptown | Visited UFD Registry 4213 | -7/Scraptown | Registered with UFD as "Flexicircuit" 4327 | -7/Scraptown | Delivered Scrap Shield to a Scientist 4408 | -7/Scraptown | Visited Junk Cannon Lab 4451 | -7/Scraptown | Visited Abandonware Association 4467 | -7/Scraptown | Learned abandonware demo "ERRANTS.EXE" 4467 | -7/Scraptown | Learned abandonware demo "REVENGE.EXE" 4505 | -7/Scraptown | Visited Science Guys 4568 | -7/Scraptown | Visited Botcube Research 4620 | -7/Scraptown | Visited Junk Repository 4679 | -7/Scraptown | Visited Curators Association 4706 | -7/Scraptown | Visited Observation Area 4737 | -7/Scraptown | Visited Junk Repository 4786 | -7/Scraptown | Visited DA-N13 Charitable Foundation 4803 | -7/Scraptown | Found DCF Scrap (28 items) 4859 | -7/Scraptown | Visited Infowarlord's Domain 5080 | -7/Scraptown | Found Scrap Suit 5272 | -7/Scraptown | Visited Awakened 5297 | -7/Scraptown | Visited TADAMA 6233 | -7/Scraptown | Found Botcube 6288 | -7/Scraptown | Botcube activated 6310 | -7/Scraptown | Botcube completed mutation into treaded form, armed with 2 guns. 6382 | -7/Scraptown | Visited Bundlers 6839 | -7/Scraptown | Build established: Derelict-Mutant 6860 | -7/Scraptown | Discovered new exit (range 3) 6896 | -7/Scraptown | Found Scrap Suit 7217 | -7/Scraptown | Met Optimus 7217 | -7/Scraptown | Accepted into 0bPrime 7274 | -7/Scraptown | Entered Factory 7274 | -5/Factory | Accompanied by 1 ally 7274 | -5/Factory | Evolved 10 slots: Propulsion x3, Utility x5, Weapon x2 7350 | -5/Factory | Scrapoid reinforcements arrived 7444 | -5/Factory | Found Scrap Suit 7593 | -5/Factory | Identified exit to Garrison 7738 | -5/Factory | Garrison activated, responded to threat 7765 | -5/Factory | Loaded intel: 8 recycling unit locations 7961 | -5/Factory | Garrison activated, responded to threat 8034 | -5/Factory | Build established: Scavenger-Gunner 8060 | -5/Factory | Discovered new exit (range 15) 8174 | -5/Factory | First assault squad dispatched 8199 | -5/Factory | Garrison activated, responded to threat 8281 | -5/Factory | Discovered new exit (range 14) 8458 | -5/Factory | High security lockdown imminent 8491 | -5/Factory | Cargo convoy interrupted 8506 | -5/Factory | Garrison activated, responded to threat 8538 | -5/Factory | High security lockdown engaged 8683 | -5/Factory | Entered Garrison 8709 | -5/Garrison | Rescued a captive Derelict 8745 | -5/Garrison | Triggered checkpoint 8748 | -5/Garrison | Garrison Relay disabled 8751 | -5/Garrison | Lost 3 parts (2u1w) 8760 | -5/Garrison | Build established: Scavenger-Tank 8779 | -5/Garrison | Triggered checkpoint 8881 | -5/Garrison | Discovered new exit (range 5) 8987 | -5/Garrison | Triggered checkpoint 9011 | -5/Garrison | Triggered checkpoint 9047 | -5/Garrison | Discovered new exit (range 10) 9048 | -5/Garrison | Spotted B-75 Beast 9061 | -5/Garrison | Rewired B-75 Beast 9064 | -5/Garrison | Rewired B-90 Cyclops 9073 | -5/Garrison | Allies destroyed B-75 Beast 9077 | -5/Garrison | Core integrity fell below 50% 9098 | -5/Garrison | Core integrity fell below 20% 9105 | -5/Garrison | Destroyed by X-77 Beamer with Gatling Laser Last Messages --------------- 09085_ Cyclops 6a destroyed. 09086_ Adv. Heat Sink destroyed. 09086_ Acquired Imp. Medium Treads. 09087_ Acquired 57 matter. 09088_ Penetrated by Slug. 09088_ Ovr. Huge Scrapsphere destroyed. 09089_ X-77 Beamer destroyed. 09091_ Acquired Magnetic Acceleration Cannon. 09091_ Penetrated by Slug. 09091_ Slug penetrates Machine. 09092_ System corrupted: Component data lost. 09093_ Imp. Medium Treads destroyed. 09096_ Magnetic Acceleration Cannon destroyed. 09097_ Dropped Lrg. Storage Unit. 09098_ Penetrated by Slug. 09098_ Multitool destroyed. 09100_ Acquired Imp. Medium Treads. 09102_ Acquired 59 matter. 09103_ Acquired Imp. Medium Treads. 09104_ Imp. Medium Treads destroyed. Map ----- +----------------------------------------------------+ | ????????????# #? ""#???????????????????? | | ????????????# #??!!!!!!"""????????????????????? | | ????????????# #???"""""""?????????????????????? | | ????????????# #????######?????????????????????? | | ????????????# #???????????????????????????????? | | ????????????# +???????????????????????????????? | | ????????????# #???????????????????????????????? | | ????????????# #?????????+##???????????????????? | | ????????????# #???????? #???????????????????? | | ????????????# ######### < ########++??????????? | | ????????????# #?????????? | | ????????????# % #?????????? | | ????????????#######; ############# #?????????? | | ??????????????#####; #######??????????????????? | | ??????????????# %g #??????????????????? | | ??????????????# =%[ ##?????????????????? | | ?????????????#" ! "##????????????????? | | ????????????#"" xggh !"#????????????????? | | ????????????#BB ! % !!#????????????????? | | ????????????#BB ! !*#????????????????? | | ????????????#"" "#????????????????? | | ????????????#"" ! * "#????????????????? | | ????????????#"" % ! #????????????????? | | ????????????# #????????????????? | | ????????????# #????????????????? | | ????????????#"" = @ %""#????????????????? | | ?????????????"" !=! ""#????????????????? | | ?????????????"" %]!*! ""#????????????????? | | ????????????#"m"""%!"""BB"""m"#????????????????? | | ???????????????"""!!"""BB"""""#????????????????? | | ???????????????################????????????????? | | ???????????????????????????????????????????????? | | ???????????????????????????????????????????????? | | ???????????????????????????????????????????????? | | ???????????????????????????????????????????????? | | | | | | | | | | | | | | | | | | | | | | | | | | | | | | | +----------------------------------------------------+ Best States ------------- Heat Dissipation 86 Energy Generation 18 Energy Capacity 290 Matter Stores 300 Matter Capacity 300 Sight Range 16 Terrain Scan Range 16 Terrain Scan Density 10 Armor Coverage 450 Evasion (%) 50 Targeting Accuracy 6 Recoil Reduction 6 Matter Filtering 30 Kinecelleration 40 Item Schematics ----------------- None Robot Schematics ------------------ None Fabricated ------------ Nothing Repaired ---------- Lgt. Treads | 4% | -10/Materials Lgt. Treads | 36% | -10/Materials Alien Tech Used ----------------- None Achievements -------------- None Challenges ------------ None Game ------ Seed HackingDisruptorRailgun Manual? 0 Play Time 01:16:17 Cumulative 250.2 hours Start 2025.06.03 @ 12:23:48 End 2025.06.03 @ 13:39:15 Sessions 1 Manual Loads 0 Difficulty Rogue Special Mode None Game No. 151 Rogue 151 Adventurer 0 Explorer 0 Win Type - Total 3 Types 1/0/1/1/0/0/0/0/0/0 Lore% 79 Gallery% 65 Achievement% 63 Wizard Run 0 Options --------- Layout 2 ASCII 0 Keyboard 1 Movement Vi Keybinds 0 Fullscreen 1 Font 16/Tamsyn Map View 55x47 Zoom Use 0% Tactical HUD 1 Map Filters NONE Filters NONE Steam 0 RUN: 5260cb57-c4e6-48e1-bf05-43052f84eb4e